Workbook

Sheet 一般公共预算收支调整表
A1: 附件1：
A2: 阎良区2021年一般公共预算收支预算调整表（草案）
D3: 单位：万元
A4: 收 入 | C4: 支 出
A5: 项 目 | B5: 区本级 | C5: 项 目 | D5: 区本级
A6: 一、年初预算 | C6: 一、年初预算
A7: （一）一般公共预算收入 | B7: 75,280 | C7: （一）一般公共预算支出 | D7: 149,568
A8: （二）转移性收入 | B8: =SUM(B9:B12) -> 84,668 | C8: （二）转移性支出 | D8: =D9+D10 -> 10,380
A9: 其中：一般转移支付收入 | B9: 20,000 | C9: 其中：上解上级支出 | D9: 7,000
A10: 专项转移支付收入 | B10: 15,268 | C10: 地方政府债券还本支出 | D10: 3,380
A11: 调入资金 | B11: 22,200
A12: 上年结余 | B12: 27,200
A13: （三）一般公共预算收入总计 | B13: =B7+B8 -> 159,948 | C13: （三）一般公共预算支出总计 | D13: =D7+D8 -> 159,948
A14: 二、调整事项 | C14: 二、调整事项
A15: （一）一般公共预算收入 | B15: =5820+6513 -> 12,333 | C15: （一）一般公共预算支出 | D15: =85275+6513 -> 91,788
A16: （二）转移性收入 | B16: =SUM(B17:B22) -> 87,038 | C16: （二）转移性支出 | D16: =SUM(D17:D19) -> 7,583
A17: 其中：一般转移支付收入 | B17: 11,244 | C17: 其中：上解上级支出 | D17: 300
A18: 专项转移支付收入 | B18: 66,732 | C18: 地方政府债券还本支出 | D18: =4753+2530 -> 7,283
A19: 地方政府一般债券转贷收入 | B19: 4,716
A20: 再融资债券收入 | B20: 2,530
A21: 调入资金 | B21: =5541+535-5000 -> 1,076
A22: 上年结余 | B22: 740 | C22: 结余
A23: （三）一般公共预算收入总计 | B23: =B15+B16 -> 99,371 | C23: （三）一般公共预算支出总计 | D23: =SUM(D15:D16) -> 99,371
A24: 三、调整后预算 | C24: 三、调整后预算
A25: （一）一般公共预算收入 | B25: =B7+B15 -> 87,613 | C25: （一）一般公共预算支出 | D25: =D7+D15 -> 241,356
A26: （二）转移性收入 | B26: =SUM(B27:B32) -> 171,706 | C26: （二）转移性支出 | D26: =SUM(D27:D31) -> 17,963
A27: 其中：一般转移支付收入 | B27: =B9+B17 -> 31,244 | C27: 其中：上解上级支出 | D27: =D9+D17 -> 7,300
A28: 专项转移支付收入 | B28: =B10+B18 -> 82,000 | C28: 地方政府债券还本支出 | D28: =D10+D18 -> 10,663
A29: 地方政府一般债券转贷收入 | B29: 4,716
A30: 再融资债券收入 | B30: 2,530
A31: 调入资金 | B31: =535+1000+政府性基金预算收支调整表!D24 -> 23,276 | C31: 结余
A32: 上年结余 | B32: =B12+B22 -> 27,940
A33: （三）一般公共预算收入总计 | B33: =B25+B26 -> 259,319 | C33: （三）一般公共预算支出总计 | D33: =SUM(D25:D26) -> 259,319

Sheet 政府性基金预算收支调整表
A1: 附件2：
A2: 阎良区2021年政府性基金预算收支预算调整表（草案）
D3: 单位：万元
A4: 收 入 | C4: 支 出
A5: 项 目 | B5: 区本级 | C5: 项 目 | D5: 区本级
A6: 一、年初预算 | C6: 一、年初预算
A7: （一）政府性基金预算收入 | B7: 56,750 | C7: （一）政府性基金预算支出 | D7: 13,714
A8: （二）转移性收入 | B8: =SUM(B9:B10) -> 7,164 | C8: （二）转移性支出 | D8: =SUM(D9:D11) -> 50,200
A9: 其中：上级专项转移支付收入 | B9: 738 | C9: 其中：调出资金 | D9: 17,200
A10: 上年结余 | B10: 6,426 | C10: 上解上级 | D10: 8,000
C11: 地方政府债券还本支出 | D11: 25,000
A12: （三）政府性基金预算收入总计 | B12: =B7+B8 -> 63,914 | C12: （三）政府性基金预算支出总计 | D12: =D8+D7 -> 63,914
A13: 二、调整事项 | C13: 二、调整事项
A14: （一）政府性基金预算收入 | B14: 5,800 | C14: （一）政府性基金预算支出 | D14: =56673+1000 -> 57,673
A15: （二）转移性收入 | B15: =SUM(B16:B19) -> 75,000 | C15: （二）转移性支出 | D15: =SUM(D16:D18) -> 18,127
A16: 其中：上级专项转移支付收入 | B16: 1,000 | C16: 其中：调出资金 | D16: 4,541
A17: 其他地方自行试点项目收益专项债券转贷收入 | B17: 24,000 | C17: 上解上级 | D17: 13,586
A18: 棚户区改造专项债券转贷收入 | B18: 20,000 | C18: 年终结余
A19: 再融资债券 | B19: 30,000 | C19: 地方政府债券还本支出 | D19: =-25000+30000 -> 5,000
A20: （三）政府性基金预算收入总计 | B20: =B14+B15 -> 80,800 | C20: （四）政府性基金预算支出总计 | D20: =D14+D15+D19 -> 80,800
A21: 三、调整后预算 | C21: 三、调整后预算
A22: （一）政府性基金预算收入 | B22: =B7+B14 -> 62,550 | C22: （一）政府性基金预算支出 | D22: =D7+D14 -> 71,387
A23: （二）转移性收入 | B23: =SUM(B24:B28) -> 82,164 | C23: （二）转移性支出 | D23: =SUM(D24:D26) -> 73,327
A24: 其中：上级专项转移支付收入 | B24: =B9+B16 -> 1,738 | C24: 其中：调出资金 | D24: =D9+D16 -> 21,741
A25: 其他地方自行试点项目收益专项债券转贷收入 | B25: =B17 -> 24,000 | C25: 上解支出 | D25: 21,586
A26: 棚户区改造专项债券转贷收入 | B26: 20,000 | C26: 地方政府债券还本支出 | D26: =D11+D19 -> 30,000
A27: 再融资债券 | B27: 30,000
A28: 上年结余 | B28: =B10 -> 6,426 | C28: 年终结余
A29: （三）政府性基金预算收入总计 | B29: =B22+B23 -> 144,714 | C29: （四）政府性基金预算支出总计 | D29: =D22+D23 -> 144,714

Sheet 国有资本经营收支预算
A1: 附件3：
A2: 阎良区2021年国有资本经营预算收支预算调整表（草案）
D3: 单位：万元
A4: 收 入 | C4: 支 出
A5: 项 目 | B5: 区本级 | C5: 项 目 | D5: 区本级
A6: 一、年初预算 | C6: 一、年初预算
A7: （一）国有资本经营预算收入 | B7: 5,000 | C7: （一）国有资本经营预算支出
A8: （二）转移性收入 | B8: 139 | C8: （二）转移性支出 | D8: 5,000
A9: （三）国有资本经营预算收入总计 | B9: =SUM(B7:B8) -> 5,139 | C9: （三）国有资本经营预算支出总计 | D9: =SUM(D7:D8) -> 5,000
A10: 二、调整事项 | C10: 二、调整事项
A11: （一）国有资本经营预算收入 | B11: -5,000 | C11: （一）国有资本经营预算支出 | D11: =B8+B13 -> 347
A12: （二）转移性收入 | B12: =B13 -> 208 | C12: （二）转移性支出 | D12: =D13 -> 0
A13: 其中：国有资本经营预算转移支付收入 | B13: 208 | C13: 其中：国有资本经营预算调出资金
A14: （三）国有资本经营预算收入总计 | B14: =B11+B12 -> -4,792 | C14: （三）国有资本经营预算支出总计 | D14: =D11+D12 -> 347
A15: 三、调整后预算 | C15: 三、调整后预算
A16: （一）国有资本经营预算收入 | B16: =B7+B11 -> 0 | C16: （一）国有资本经营预算支出 | D16: =D7+D11 -> 347
A17: （二）转移性收入 | B17: =B8+B12 -> 347 | C17: （二）转移性支出 | D17: =D18 -> 0
A18: 其中：国有资本经营预算转移支付收入 | B18: =B8+B12 -> 347 | C18: 其中：国有资本经营预算调出资金
A19: （三）国有资本经营预算收入总计 | B19: =B9+B14 -> 347 | C19: （三）国有资本经营预算支出总计 | D19: =D16+D17 -> 347

Sheet 一般债券
A1: 附件4：
A2: 阎良区2021年新增地方政府一般债券安排表（草案）
D3: 单位：万元
A4: 序号 | B4: 项目单位 | C4: 项目名称 | D4: 新增债券额度 | E4: 置换额度 | F4: 拨付额度
A5: 1 | B5: 阎良区住建局 | C5: 航空城大道提升项目 | D5: 1,000 | E5: 1,000
A6: 2 | B6: 阎良区住建局 | C6: 振兴路桥下空间提升项目 | D6: 340 | E6: 250 | F6: =D6-E6 -> 90
A7: 3 | B7: 阎良区住建局 | C7: 前进东路综合提升改造项目 | D7: 1,000 | E7: 180 | F7: 820
A8: 4 | B8: 阎良区住建局 | C8: 迎宾路（关中环线至人民路）提升改造项目 | D8: 499 | E8: 499
A9: 5 | B9: 阎良区住建局 | C9: 阎良区公园北街、东西立交桥市政设施提升项目 | D9: 1,000 | E9: 650 | F9: 350
A10: 6 | B10: 阎良区住建局 | C10: 振兴路立交桥建设项目 | D10: 500 | E10: 500
A11: 7 | B11: 阎良区城管局 | C11: 迎宾北路提升改造项目 | D11: 373 | E11: 120 | F11: 253
A12: 8 | B12: 阎良区水务局 | C12: 二龙口水库项目 | D12: 4 | E12: 4
A13: 合计 | D13: =SUM(D5:D12) -> 4,716 | E13: =SUM(E5:E12) -> 3,203 | F13: =SUM(F5:F12) -> 1,513

Sheet 专项债券
A1: 附件5：
A2: 阎良区2021年新增地方政府专项债券安排表（草案）
E3: 单位：万元
A4: 序号 | B4: 债券类型 | C4: 项目单位 | D4: 项目名称 | E4: 新增债券额度
A5: 1 | B5: 棚户区改造 | C5: 阎良区新华路街道办事处 | D5: 阎良区农兴村新东组棚户区改造项目 | E5: 20,000
A6: 2 | B6: 城镇老旧小区改造 | C6: 阎良区住房和城乡建设局 | D6: 阎良区保障性住房（航城佳苑）续建项目-保障性租赁住房 | E6: 4,000
A7: 3 | B7: 产业园区基础设施 | C7: 阎良经济开发区管理委员会 | D7: 阎良区关山工业园区基础设施项目 | E7: 20,000
A8: 合计 | E8: =SUM(E5:E7) -> 44,000
